Cogmind - Beta 13 @@@ ROGUE MODE // 2024.05.13 @ 16:19:41 Player: Barbarossa Result: Destroyed by YI-UF0 with YI-UF0's Doublenader Performance ------------- Evolutions (0) 0 Regions Visited (2) 400 Robots Destroyed (4) 20 Value Destroyed (94) 94 Prototype IDs (0) 0 Alien Tech Used (0) 0 Bonus (0) 0 TOTAL SCORE: 514 Bonus ------- None Cogmind --------- Core Integrity 0/250 Matter 249/300 Energy 73/100 System Corruption 0% Temperature Cool (0) Movement Core (200) Ox3 Location -10/Mines Parts ------- > --- POWER (1) -------- (None) > --- PROPULSION (2) --- (None) > --- UTILITY (2) ------ Small Storage Unit Improved Terrain Scanner > --- WEAPON (2) ------- Assault Rifle Grenade Launcher > --- INVENTORY (8) ---- Ion Engine Light Treads Light Treads High-capacity Matter Pod (66) Small Laser Particle Gun Peak State ------------ > --- POWER ------------ Ion Engine > --- PROPULSION ------- Aluminum Leg Aluminum Leg > --- UTILITY ---------- Small Storage Unit Improved Terrain Scanner > --- WEAPON ----------- Small Laser Small Laser > --- INVENTORY -------- Ion Engine Light Treads Light Treads Wheel Wheel Wheel Assault Rifle [Rating: 9] Favorites ----------- Power Ion Engine Engine Ion Engine Propulsion Aluminum Leg Leg Aluminum Leg Wheel Wheel Utility Small Storage Unit Device Improved Terrain Scanner Storage Small Storage Unit Weapon Small Laser Energy Gun Small Laser Ballistic Gun Assault Rifle Launcher Grenade Launcher Special Weapon Mining Laser Build | -11 -10 -10 ------- Run | Yrd Mat Min Slots Evolved . | . . . Power . | . . . Propulsion . | . . . Utility . | . . . Weapon . | . . . Parts Attached 8 | 1 2 5 Power . | . . . Engine . | . . . Core . | . . . Reactor . | . . . Propulsion 3 | . 2 1 Treads . | . . . Leg . | . . . Wheel 3 | . 2 1 Hover . | . . . Flight . | . . . Utility 1 | 1 . . Device 1 | 1 . . Storage . | . . . Processor . | . . . Hackware . | . . . Protection . | . . . Artifact . | . . . Weapon 4 | . . 4 Energy Gun 1 | . . 1 Energy Cannon . | . . . Ballistic Gun 1 | . . 1 Ballistic Cannon . | . . . Launcher 1 | . . 1 Special Weapon 1 | . . 1 Impact Weapon . | . . . Slashing Weapon . | . . . Piercing Weapon . | . . . Special Melee Weapon . | . . . Unidentified Prototypes . | . . . Parts Lost 5 | . . 5 Power 1 | . . 1 Propulsion 2 | . . 2 Utility . | . . . Weapon 2 | . . 2 Highest Loss Streak 5 | . . 5 To Critical Strikes . | . . . Average Slot Usage (%) 98 | . 100 98 Engine 13 | . 14 13 Leg 6 | . 25 . Wheel 20 | . 2 27 Device 14 | . 14 14 Storage 14 | . 14 14 Energy Gun 19 | . 28 16 Special Weapon 7 | . . 10 Naked Turns . | . . . Heaviest Build 13 | 13 13 13 Greatest Support 20 | 20 20 20 Greatest Overweight (x) . | . . . Average Overweight (x) . | . . . Largest Inventory Capacity 8 | 8 8 8 Average Capacity 8 | 8 8 8 Most Carried 8 | 8 8 8 Average Carried 7 | 6 7 7 Final Capacity 8 | 8 8 8 Final Carried 7 | 7 7 6 Class Distribution -------------------- 100% | Mutant Dominant Class ---------------- Mutant | -10/Materials Mutant | -10/Mines Resources | -11 -10 -10 ----------- Run | Yrd Mat Min Matter Collected 296 | 200 . 96 Remotely . | . . . Salvage Created 177 | 81 . 96 Parts 6 | 3 . 3 Haulers Intercepted . | . . . Recyclers Shooed . | . . . Parts Field Recycled . | . . . Retrieved Matter . | . . . Parts Self-Destructed . | . . . Prevented . | . . . Kills | -11 -10 -10 ------- Run | Yrd Mat Min Combat Hostiles Destroyed 2 | . . 2 Guns 2 | . . 2 Classes Destroyed 3 | 2 . 1 Tunneler 1 | 1 . . Recycler 1 | 1 . . Grunt 2 | . . 2 Best Kill Streak 2 | 2 . 2 Combat Bots Only 2 | . . 2 Max Kills in Single Turn 1 | 1 . 1 Gunslinging . | . . . Exploded . | . . . Melee . | . . . Uniques/NPCs Destroyed . | . . . Combat | -11 -10 -10 -------- Run | Yrd Mat Min Hostile Shots Fired 28 | . . 28 Missed 4 | . . 4 Damage Taken 714 | . . 714 Core 253 | . . 253 Absorbed by Shields . | . . . Core Remaining (%) 100 | 100 . . Volleys Fired 24 | 12 . 12 Largest 2 | 2 . 2 Hottest 140 | 80 . 140 Shots Fired 46 | 24 . 22 Gun 43 | 24 . 19 Cannon . | . . . Launcher 2 | . . 2 Special 1 | . . 1 Kinetic 2 | . . 2 Thermal 42 | 24 . 18 Explosive 2 | . . 2 Electromagnetic . | . . . Robot Hit Streak 4 | 4 . 3 Robot Miss Streak 4 | 4 . 3 Penetration Max . | . . . Secondary Targets . | . . . Shots Hit Robots 20 | 9 . 11 Core Hits 12 | 3 . 9 Critical Kills . | . . . Critical Parts Destroyed . | . . . Critical Strikes . | . . . Melee Attacks . | . . . Impact . | . . . Slashing . | . . . Piercing . | . . . Sneak Attacks . | . . . Combat Hostiles . | . . . Follow-up Attacks . | . . . Damage Inflicted 234 | 109 . 125 Guns 215 | 109 . 106 Cannons . | . . . Explosions 19 | . . 19 Melee . | . . . Ramming . | . . . Kinetic 15 | . . 15 Thermal 200 | 109 . 91 Explosive 19 | . . 19 Electromagnetic . | . . . Impact . | . . . Slashing . | . . . Piercing . | . . . Highest Corruption . | . . . Average Corruption . | . . . Corruption Purged . | . . . Corruption Blocked . | . . . Overload Shots . | . . . Overflow Damage . | . . . Projectiles . | . . . Explosions . | . . . Melee . | . . . Knockbacks . | . . . Impact . | . . . Kinetic . | . . . Secondary . | . . . Self-Inflicted Damage 49 | . . 49 Shots 2 | . . 2 Rammed . | . . . Targets Rammed . | . . . Kicked . | . . . Crushed . | . . . Highest Temperature 180 | 56 . 180 Average Temperature 50 | 25 . 80 Received Heat Transfer 72 | . . 72 Siege Activations . | . . . Robots Corrupted . | . . . Combat Hostiles . | . . . Parts Fried . | . . . Impact Corruptions . | . . . Robots Melted . | . . . Combat Hostiles . | . . . Parts Melted . | . . . Heat Transferred 450 | 250 . 200 Parts Sabotaged . | . . . Parts Stolen . | . . . Parts Stripped . | . . . Power Chain Reactions . | . . . Alert | -11 -10 -10 ------- Run | Yrd Mat Min Peak Influence 51 | 10 . 51 Initial . | . . . Average 10 | 2 . 46 Maximum Alert Level . | . . . Low Security (%) 100 | 100 100 100 Level 1 . | . . . Level 2 . | . . . Level 3 . | . . . Level 4 . | . . . Level 5 . | . . . High Security . | . . . Max Security . | . . . Squads Dispatched . | . . . Investigation . | . . . Extermination . | . . . Reinforcement . | . . . Assault . | . . . Garrison . | . . . Intercept . | . . . Searches Triggered . | . . . Construction Impeded . | . . . Haulers Reinforced . | . . . Active Scanning Responses . | . . . Cargo Convoy Interrupts . | . . . Stealth | -11 -10 -10 --------- Run | Yrd Mat Min Distress Signals . | . . . Communications Jammed . | . . . Distress Signals . | . . . Times Spotted 3 | . . 3 Peak Tracking Total 2 | . . 2 Tactical Retreats . | . . . Traps | -11 -10 -10 ------- Run | Yrd Mat Min Traps Triggered . | . . . Indirectly . | . . . Trap Hack Attempts . | . . . Triggered . | . . . Disarmed . | . . . Reprogrammed . | . . . Reused . | . . . Traps Extracted . | . . . Installed . | . . . Triggered . | . . . Machines | -11 -10 -10 ---------- Run | Yrd Mat Min Machines Disabled . | . . . Max in Single Turn . | . . . Machines Repaired . | . . . Machines Dismantled . | . . . Machines Sabotaged . | . . . Overloaded Fab Kills . | . . . Hacking | -11 -10 -10 --------- Run | Yrd Mat Min Machines Accessed 1 | . 1 . Terminals 1 | . 1 . Fabricators . | . . . Repair Stations . | . . . Recycling Units . | . . . Scanalyzers . | . . . Garrison Access . | . . . Total Hacks 2 | . 2 . Successful 2 | . 2 . Failed . | . . . Catastrophic . | . . . Database Lockouts . | . . . Manual 2 | . 2 . Terminals 2 | . 2 . Fabricators . | . . . Repair Stations . | . . . Recycling Units . | . . . Scanalyzers . | . . . Garrison Access . | . . . Terminal Hacks 1 | . 1 . Unreport Threat 1 | . 1 . Fabricator Hacks . | . . . Repair Station Hacks . | . . . Recycling Unit Hacks . | . . . Scanalyzer . | . . . Garrison Access Hacks . | . . . Unauthorized Hacks 1 | . 1 . Terminals 1 | . 1 . Botnet 1 | . 1 . Fabricators . | . . . Repair Stations . | . . . Recycling Units . | . . . Scanalyzers . | . . . Garrison Access . | . . . Data Cores Recovered . | . . . Used . | . . . Hacking Detections 1 | . 1 . Full Trace Events . | . . . Feedback Events . | . . . Feedback Blocked . | . . . Robot Schematics Acquired . | . . . Robots Built . | . . . Authchips . | . . . Time . | . . . Total Robot Build Rating . | . . . Part Schematics Acquired . | . . . Parts Built . | . . . Authchips . | . . . Time . | . . . Total Part Build Rating . | . . . Parts Repaired . | . . . Time . | . . . Parts Recycled . | . . . Recycled Matter . | . . . Retrieved Matter . | . . . Retrieved Components . | . . . Parts Scanalyzed . | . . . Part Schematics Acquired . | . . . Parts Damaged . | . . . Bothacking | -11 -10 -10 ------------ Run | Yrd Mat Min Used RIF Installer . | . . . Robots Hacked . | . . . Non-combat . | . . . Combat . | . . . Robot Hacks Applied . | . . . Relay Couplers Released . | . . . Fabnet Peak Effective % . | . . . Robots Rewired . | . . . Allies Hacked . | . . . Hacks Repelled . | . . . Allies | -11 -10 -10 -------- Run | Yrd Mat Min Total Allies . | . . . Largest Group . | . . . Highest-Rated Group . | . . . Highest-Rated Ally . | . . . Total Orders . | . . . Ally Attacks . | . . . Total Damage . | . . . Kills . | . . . Allies Corrupted . | . . . Allies Melted . | . . . Intel | -11 -10 -10 ------- Run | Yrd Mat Min Robot Analysis Total . | . . . Derelict Logs Recovered 1 | . . 1 Drone Launches . | . . . Drone Recoveries . | . . . Exploration | -11 -10 -10 ------------- Run | Yrd Mat Min Turns Passed 1703 | 1292 108 303 Spaces Moved 726 | 444 85 197 Core . | . . . Treads . | . . . Legs 524 | 444 80 . Wheels 202 | . 5 197 Hover . | . . . Flight . | . . . Fastest Speed 80 | 120 80 80 Average Speed 108 | 120 117 80 Slowest Speed 120 | 120 120 80 Overloaded Moves . | . . . Propulsion Burnouts . | . . . Robots Hopped . | . . . Cave-ins Triggered . | . . . Exploration Rate (%) 34 | 45 19 38 Regions Visited 2 Branch Regions 1 Pre-discovered Areas . | . . . Known Exits Taken . | . . . Unknown Exits Taken 2 | 1 1 . Scrap Searched . | . . . Spaces Dug 1 | . . 1 Terrain Destroyed 3 | . . 3 Melee . | . . . Projectile 1 | . . 1 AOE 2 | . . 2 Terrain Rammed . | . . . Walls Destroyed . | . . . Machines Disabled . | . . . Actions | -11 -10 -10 --------- Run | Yrd Mat Min Total 1592 | 1179 92 321 Wait 826 | 721 2 103 Move 724 | 443 84 197 Hop . | . . . Pick Up 6 | 2 2 2 Fast Attach . | . . . Attach 3 | 1 . 2 Detach . | . . . Swap 5 | . 2 3 Drop 4 | . 2 2 Fire 24 | 12 . 12 Melee . | . . . Ram . | . . . Kick . | . . . Crush . | . . . Escape Stasis . | . . . Rewire . | . . . Trap . | . . . Miscellaneous . | . . . Route ------- -11/Scrapyard -10/Materials (discovered 2 exits: [*Min] / [Sub]) -10/Mines History --------- Turn | Location | Event 10 | -11/Scrapyard | Discovered new exit (range 3) 1293 | -11/Scrapyard | Entered Materials 1294 | -10/Materials | Build established: Mutant 1355 | -10/Materials | Discovered new exit (range 12) 1360 | -10/Materials | Discovered new exit (range 13) 1401 | -10/Materials | Entered Mines 1529 | -10/Mines | YI-UF0 nonchalantly dropped a Grenade Launcher on the ground 1541 | -10/Mines | Assembled infested the area 1546 | -10/Mines | Assisted by a Guerilla fighting off Assembled 1548 | -10/Mines | Learned 8 Materials zone layouts 1695 | -10/Mines | Core integrity fell below 50% 1701 | -10/Mines | Core integrity fell below 20% 1704 | -10/Mines | Destroyed by YI-UF0 with YI-UF0's Doublenader Last Messages --------------- 01531_ Dropped Wheel. 01532_ Acquired Grenade Launcher. 01541_ ALERT: Infestation in the mines, dispatching Demolisher response squad. 01546_ A derelict emerges from the shadows: "You need to get out of here! I've been tracking a group of Assembled to figure out where they're coming from, and they're closing on this area, come on!" 01548_ Acquired derelict log, extracted data. Data stored: Materials zone layouts (x8). 01690_ Mining Laser destroyed. 01696_ The unstable cave ceiling collapses. 01698_ Ion Engine destroyed. 01698_ Sml. Laser destroyed. 01698_ Wheel destroyed. 01699_ The unstable cave ceiling collapses. 01700_ Wheel destroyed. 01701_ YI-UF0 mumbles something. 01702_ The unstable cave ceiling collapses. Map ----- +----------------------------------------------------+ | ?????????????????????????????????????????## #? | | ????????????????????????????????????????## ## | | ????????????????????????????????????????# # | | ?????????????????????????????????????#??# | | ????????????????????????????????????????##### | | ????????????????????????????????????#???###?## | | ????????????????????????????????? ?????? #??##### | | ?????????????????????????????#?#????????# #??????# | | ??????????????????????????????????#??#??# #??????? | | ????????????????????????????????????????# ##?#???# | | ??????????????????????????????????????### #??##### | | ??????????????????????????????####???## #### | | ?????????????????????????????## ##### ## | | ??????????????????????????#### ### | | ????????????#????????????# ### | | ?????????????????????##### ##?? | | ?????????????????????## # ##??? | | ???????????????????#?# ## ###?? | | ?????????????????????# # # ## ###? | | ?????????????????? ??# # ## #### ## | | ????????????????????## # ######??# | | ?????????????? ?????# #???????## | | ??????????????????# ## #?????????# | | ??????????????????# #?????????# | | ??????????????????### ##????????## | | ??????????????????#?# @ #??#?????# ## | | ?????????????????#??# #???????## #### | | ????????????????????# g ##???#???# ##???# | | ?????????????????#### ########## ##?????## | | ????????????????# #???????? | | ????????????????# = #??????#? | | ???????????????## #### ### ###########?????#?? | | ????????????????# ????######?# ## ??????? | | ????????????????#??????##????# ## """" """" ????? | | ?????????????????????????##### ## """" """" ???? | | ????????????????????????## ## """" """" ????? | | ????????????????????????# ## ## ?????? | | ????????????????#???????# ### ## """" ?????? | | ??????????????????? ????# =### ## """" ?????? | | ????????????????????????## ## """" #??? | | ?????????????????????????## #### #?#? | | ??????????????????????????# ##?## #############?? | | ??????????????????? ????## #### #?#???????#???? | | ???????????????????? ????# #???#?#?#?????? | | ????????????????????????## ##### #?????????????? | | ??????????????????????#?# ##???# #??#???????#??? | | ????????????????????????# ##????# ###???????????? | | ???????????????????????# #?#??# #???????????? | | ??????????????#????????# #####???###[#???????????? | | ???????????????? ??????##?#??????### #####???????? | +----------------------------------------------------+ Best States ------------- Heat Dissipation 25 Energy Generation 10 Energy Capacity 250 Matter Stores 300 Matter Capacity 300 Sight Range 16 Terrain Scan Range 16 Terrain Scan Density 10 Evasion (%) 55 Item Schematics ----------------- None Robot Schematics ------------------ None Fabricated ------------ Nothing Alien Tech Used ----------------- None Achievements -------------- None Challenges ------------ None Game ------ Seed GrenadeAntimatterBroadsword Manual? 0 Play Time 00:06:35 Cumulative 167.2 hours Start 2024.05.13 @ 16:14:45 End 2024.05.13 @ 16:19:41 Sessions 1 Manual Loads 0 Difficulty Rogue Special Mode None Game No. 317 Rogue 317 Adventurer 0 Explorer 0 Win Type - Total 0 Types 0/0/0/0/0/0/0/0/0 Lore% 41 Gallery% 52 Achievement% 38 Wizard Run 0 Options --------- Layout 1 ASCII 0 Keyboard 0 Movement Mouse Keybinds 0 Fullscreen 1 Font 24/Smallcaps Map View 50x40 Zoom Use 0% Tactical HUD 1 Map Filters NONE Filters NONE Steam 1 RUN: 88357d10-2807-4198-ab76-104e59e6dbc9